bitfinex/quotes_SOLUSD_20251124
["timestamp","ask_amount","ask_price","bid_price","bid_amount"]
[1764007942301,12.78132736,137.53,137.52,0.72]
[1764007942502,12.78132736,137.54,137.52,0.72]
[1764007943023,12.78132736,137.54,137.52,7.99162279]
[1764007943229,12.78132736,137.57,137.52,20.77295015]
[1764007943423,12.78132736,137.57,137.53,0.71]
[1764007943639,7.26704319,137.61,137.53,20.278864]
[1764007943849,12.78132736,137.57,137.53,20.278864]
[1764007944011,12.78132736,137.57,137.54,0.71]
[1764007944418,12.78132736,137.57,137.55,7.2700836]
[1764007944621,12.78132736,137.57,137.54,0.71]
[1764007944930,12.78132736,137.57,137.54,7.98047115]
[1764007945228,12.78132736,137.57,137.54,26.15700161]
[1764007945525,12.78132736,137.57,137.55,0.71]
[1764007946105,12.78132736,137.57,137.55,7.97971714]
[1764007946717,12.78132736,137.57,137.55,0.71]
[1764007947027,12.78132736,137.58,137.55,0.71]
[1764007947844,16.07738678,137.6,137.55,7.98002606]
[1764007948047,12.78132736,137.58,137.55,7.98002606]
[1764007948209,12.78132736,137.58,137.56,0.71]
[1764007948913,12.78132736,137.58,137.52,50.0]
[1764007948914,8.80994492,137.54,137.49,7.98310349]
[1764007949116,12.78132736,137.52,137.49,7.98310349]
[1764007949361,12.78132736,137.52,137.5,0.71]
[1764007949521,8.80994492,137.54,137.5,0.71]
[1764007949714,12.78132736,137.53,137.5,0.71]
[1764007950436,12.78132736,137.53,137.5,7.98229298]
[1764007950930,12.78132736,137.52,137.5,7.98229298]
[1764007952005,12.78132736,137.52,137.5,0.71]
[1764007952228,12.78132736,137.51,137.5,0.71]
[1764007952732,12.78132736,137.52,137.5,0.71]
[1764007952921,12.78132736,137.53,137.5,7.98256127]
[1764007953313,8.80994492,137.54,137.5,7.27256127]
[1764007953314,12.78132736,137.52,137.5,7.27256127]
[1764007953624,12.78132736,137.51,137.5,7.98256127]
[1764007953816,12.78132736,137.52,137.5,7.98256127]
[1764007955041,12.78132736,137.52,137.5,0.71]
[1764007955540,7.27121116,137.53,137.49,11.24302392]
[1764007955744,7.27121116,137.53,137.48,18.18371507]
[1764007955745,12.78132736,137.5,137.48,7.98359566]
[1764007956315,8.80994492,137.54,137.5,7.27272727]
[1764007956316,19.34056367,137.54,137.5,7.27272727]
[1764007956615,12.78132736,137.52,137.5,7.27272727]
[1764007956810,12.78132736,137.52,137.5,7.98272727]
[1764007958023,12.06994492,137.54,137.5,7.98272727]
[1764007958239,12.78132736,137.52,137.51,0.71]
[1764007958548,12.78132736,137.52,137.51,7.98219838]
[1764007958748,12.78132736,137.52,137.51,0.71]
[1764007959445,12.78132736,137.53,137.51,7.98219838]
[1764007959622,12.78132736,137.54,137.51,7.98219838]
[1764007959825,12.78132736,137.54,137.52,0.71]
[1764007961150,12.78132736,137.54,137.52,7.98158613]
[1764007961350,12.06994492,137.57,137.5,3.26]
[1764007961657,12.78132736,137.51,137.47,7.47407095]
[1764007961818,12.78132736,137.51,137.48,0.71]
[1764007962128,12.78132736,137.52,137.48,0.71]
[1764007962339,12.78132736,137.51,137.48,0.71]
[1764007963127,12.78132736,137.51,137.49,7.27325623]
[1764007963344,12.78132736,137.53,137.49,28.71639682]
[1764007963519,12.78132736,137.53,137.5,0.71]
[1764007965119,12.78132736,137.55,137.51,7.27219838]
[1764007965344,16.308864,137.57,137.51,7.27219838]
[1764007965527,12.78132736,137.56,137.52,0.71]
[1764007965719,12.78132736,137.56,137.52,3.97]
[1764007966029,12.78132736,137.56,137.53,0.71]
[1764007967822,7.26908408,137.57,137.53,0.71]
[1764007968054,12.78132736,137.56,137.53,0.71]
[1764007968638,3.26,137.58,137.53,0.71]
[1764007968639,1.99999999,137.65,137.54,12.78132736]
[1764007968846,12.78132736,137.59,137.54,12.78132736]
[1764007969151,12.78132736,137.59,137.55,0.66]
[1764007969327,28.37880892,137.61,137.55,0.66]
[1764007969532,12.78132736,137.58,137.55,7.92979522]
[1764007970023,12.78132736,137.58,137.56,0.66]
[1764007970623,28.37880892,137.61,137.56,7.9295319]
[1764007970829,12.78132736,137.59,137.56,7.9295319]
[1764007971043,12.78132736,137.59,137.57,0.66]
[1764007971248,12.78132736,137.59,137.57,0.46]
[1764007971450,12.78132736,137.59,137.56,7.2695319]
[1764007973254,12.78132736,137.59,137.57,7.92857385]
[1764007974157,12.78132736,137.59,137.57,0.66]
[1764007974651,12.78132736,137.59,137.57,0.46]
[1764007974839,12.78132736,137.59,137.56,7.2695551]
[1764007975551,12.78132736,137.59,137.56,25.44344285]
[1764007975959,12.78132736,137.64,137.59,50.0]
[1764007976262,12.78132736,137.64,137.6,16.04132736]
[1764007976635,12.78132736,137.64,137.6,10.59342212]
[1764007976636,7.33342212,137.64,137.6,10.59342212]
[1764007976833,7.33342212,137.64,137.61,0.66]
[1764007977250,7.33342212,137.64,137.62,7.26638569]
[1764007977468,7.33342212,137.65,137.62,7.26638569]
[1764007977650,7.73342212,137.65,137.62,7.26638569]
[1764007978443,7.33342212,137.65,137.62,0.66]
[1764007979444,14.99831074,137.65,137.61,7.26691374]
[1764007979649,14.99831074,137.65,137.61,7.92691374]
[1764007980042,7.73342212,137.65,137.61,7.92691374]
[1764007980554,8.80994492,137.66,137.61,25.43419809]
[1764007980763,23.40773015,137.66,137.61,33.42762021]
[1764007980939,7.73342212,137.65,137.61,26.09419809]
[1764007981758,16.0742738,137.66,137.61,26.09419809]
[1764007981971,7.33342212,137.65,137.62,0.66]
[1764007982142,16.54336704,137.66,137.62,0.66]
[1764007982342,10.59342212,137.66,137.62,0.66]
[1764007982559,10.59342212,137.66,137.63,7.26585773]
[1764007982958,10.59342212,137.67,137.64,0.66]
[1764007983242,3.26,137.67,137.64,0.66]
[1764007983652,7.33342212,137.67,137.64,0.66]
[1764007984465,7.33342212,137.67,137.65,7.26480203]
[1764007984666,0.2,137.68,137.65,7.26480203]
[1764007984969,0.2,137.68,137.67,7.33342212]
[1764007985359,0.2,137.71,137.67,57.99342212]
[1764007985563,0.2,137.71,137.7,7.33342212]
[1764007985950,0.2,137.71,137.7,7.99342212]
[1764007986159,0.2,137.73,137.72,16.308864]
[1764007986362,0.2,137.73,137.72,26.90228612]
[1764007986551,0.2,137.73,137.72,34.82339561]
[1764007989488,7.53342212,137.73,137.71,7.26147278]
[1764007989646,7.33342212,137.72,137.69,0.66]
[1764007989846,7.33342212,137.71,137.69,7.2626574]
[1764007990284,7.53342212,137.73,137.7,0.66]
[1764007990793,7.33342212,137.72,137.7,7.9221411]
[1764007990943,7.33342212,137.72,137.7,7.2621411]
[1764007991148,7.33342212,137.72,137.69,7.2626156]
[1764007991467,7.33342212,137.72,137.69,7.9226156]
[1764007991868,7.33342212,137.7,137.67,10.52337385]
[1764007992054,7.33342212,137.68,137.64,50.66]
[1764007992250,7.33342212,137.67,137.65,7.26468282]
[1764007993043,7.33342212,137.67,137.62,18.16542539]
[1764007993044,7.33342212,137.66,137.62,18.16542539]
[1764007993252,7.33342212,137.64,137.62,18.82542539]
[1764007993566,8.80994492,137.71,137.63,7.92572802]
[1764007993567,7.33342212,137.67,137.63,7.92572802]
[1764007993951,7.33342212,137.67,137.64,0.66]
[1764007994259,7.33342212,137.68,137.64,0.66]
[1764007994772,7.33342212,137.67,137.65,7.26480203]
[1764007994959,7.33342212,137.68,137.65,7.26480203]
[1764007995155,7.33342212,137.69,137.65,25.42680711]
[1764007995354,7.33342212,137.7,137.66,7.99342212]
[1764007995558,7.33342212,137.7,137.66,11.25342212]
[1764007995769,7.33342212,137.7,137.66,3.26]
[1764007996075,7.33342212,137.69,137.66,3.92]
[1764007996459,7.33342212,137.7,137.66,3.92]
[1764007996653,0.4,137.72,137.66,0.66]
[1764007996654,7.33342212,137.67,137.66,0.66]
[1764007996854,7.33342212,137.68,137.66,7.92424314]
[1764007998997,7.33342212,137.69,137.66,7.92424314]
[1764008000578,7.33342212,137.69,137.66,26.08492888]
[1764008000784,7.33342212,137.7,137.66,26.08492888]
[1764008000988,7.33342212,137.69,137.66,26.08492888]
[1764008001556,7.33342212,137.7,137.67,0.66]
[1764008001918,7.53342212,137.73,137.68,7.33342212]
[1764008002261,0.2,137.73,137.72,7.33342212]
[1764008002465,0.2,137.73,137.69,70.228864]
[1764008002466,0.2,137.73,137.71,7.26142067]
[1764008002975,0.2,137.73,137.71,7.94142067]
[1764008003588,0.2,137.73,137.72,8.01342212]
[1764008003756,0.2,137.73,137.72,0.68]
[1764008004573,0.2,137.73,137.72,7.94110949]
[1764008004774,0.2,137.73,137.72,7.26110949]
[1764008005186,0.2,137.73,137.72,7.94110949]
[1764008005819,0.2,137.73,137.72,7.26110949]
[1764008006829,0.2,137.73,137.68,36.31390461]
[1764008006830,7.93342212,137.73,137.68,22.09787892]
[1764008007025,7.33342212,137.71,137.69,7.26269155]
[1764008007196,0.6,137.73,137.69,7.26269155]
[1764008007399,7.53342212,137.73,137.69,25.41942043]
[1764008007619,7.53342212,137.73,137.7,0.68]
[1764008007796,7.53342212,137.73,137.69,26.09942043]
[1764008008435,7.33342212,137.72,137.69,7.94269155]
[1764008009713,0.2,137.73,137.7,0.68]
[1764008010612,7.53342212,137.73,137.7,0.68]
[1764008010918,0.2,137.73,137.71,7.26163677]
[1764008011292,0.2,137.73,137.71,7.94163677]
[1764008011495,7.33342212,137.72,137.69,0.68]
[1764008012020,7.53342212,137.73,137.69,26.09942043]
[1764008012231,7.53342212,137.73,137.7,0.68]
[1764008012806,7.93342212,137.73,137.69,25.41942043]
[1764008013009,7.53342212,137.73,137.7,0.68]
[1764008013817,7.33342212,137.71,137.69,7.26269155]
[1764008014028,7.33342212,137.72,137.69,7.26269155]
[1764008014196,7.33342212,137.72,137.69,7.94269155]
[1764008014828,0.6,137.73,137.69,25.41942043]
[1764008014829,7.53342212,137.73,137.69,25.41942043]
[1764008015005,7.53342212,137.73,137.7,0.68]
[1764008015196,7.33342212,137.72,137.7,0.68]
[1764008016527,7.53342212,137.73,137.7,0.68]
[1764008017025,7.53342212,137.73,137.71,7.26163677]
[1764008017850,0.68,137.8,137.74,7.33342212]
[1764008018038,0.68,137.8,137.74,3.94]
[1764008018335,7.33342212,137.78,137.74,3.94]
[1764008018750,8.01342212,137.82,137.77,7.33342212]
[1764008019039,7.33342212,137.82,137.78,7.25794745]
[1764008019208,8.01342212,137.82,137.78,7.25794745]
[1764008019413,7.33342212,137.81,137.78,7.25794745]
[1764008019823,1.99999999,137.91,137.8,7.33342212]
[1764008020024,7.25123225,137.91,137.83,7.33342212]
[1764008020245,7.33342212,137.88,137.83,7.33342212]
[1764008020604,7.33342212,137.88,137.84,8.01342212]
[1764008020926,7.33342212,137.88,137.84,0.68]
[1764008021108,7.33342212,137.88,137.85,7.25426187]
[1764008021506,7.33342212,137.88,137.84,7.93456812]
[1764008021704,7.33342212,137.88,137.84,26.07153852]
[1764008022121,0.68,137.89,137.85,0.68]
[1764008022325,7.33342212,137.87,137.84,7.25456812]
[1764008022520,7.33342212,137.87,137.84,7.93456812]
[1764008022739,7.33342212,137.86,137.82,3.94]
[1764008022913,7.33342212,137.86,137.81,7.25603115]
[1764008022914,7.33342212,137.83,137.81,7.25603115]
[1764008023717,7.33342212,137.82,137.79,18.14250841]
[1764008023948,7.33342212,137.81,137.79,18.14250841]
[1764008024308,7.33342212,137.81,137.79,7.25730305]
[1764008025146,7.33342212,137.82,137.79,7.25730305]
[1764008025572,7.33342212,137.82,137.8,0.68]
[1764008025745,7.33342212,137.83,137.8,0.68]
[1764008026165,7.33342212,137.82,137.79,7.25730305]
[1764008026369,7.33342212,137.81,137.79,7.25730305]
[1764008027674,16.06460283,137.85,137.78,7.25777264]
[1764008027858,7.33342212,137.83,137.79,0.71]
[1764008028052,19.9942715,137.85,137.79,0.71]
[1764008028353,7.33342212,137.83,137.79,0.71]
[1764008028554,7.33342212,137.82,137.78,25.40264127]
[1764008028740,7.33342212,137.81,137.78,25.40264127]
[1764008028937,7.33342212,137.8,137.78,25.40264127]
[1764008029458,7.33342212,137.8,137.78,7.25777264]
[1764008029642,7.92550259,137.83,137.78,7.25777264]
[1764008030275,16.308864,137.87,137.81,50.0]
[1764008030276,7.33342212,137.87,137.81,50.0]
[1764008030480,0.67,137.86,137.82,3.26]
[1764008030789,7.33342212,137.85,137.82,3.26]
[1764008031144,7.33342212,137.85,137.82,3.97]
[1764008031479,7.33342212,137.85,137.83,7.25531451]
[1764008031963,7.33342212,137.85,137.82,10.51566507]
[1764008032175,7.9244546,137.85,137.82,3.26]
[1764008032353,7.33342212,137.83,137.81,7.25618202]
[1764008032549,8.80994492,137.88,137.81,7.25618202]
[1764008032868,7.33342212,137.86,137.82,0.66]
[1764008033078,7.33342212,137.86,137.82,7.99342212]
[1764008033377,8.03342212,137.86,137.82,0.66]
[1764008033579,7.25358777,137.87,137.82,7.91575837]
[1764008033878,7.33342212,137.85,137.82,7.91575837]
[1764008034179,7.33342212,137.85,137.82,0.66]
[1764008034362,7.33342212,137.84,137.82,0.66]
[1764008034551,7.33342212,137.85,137.82,0.66]
[1764008034753,7.33342212,137.84,137.82,0.66]
[1764008034962,7.33342212,137.84,137.82,7.91577125]
[1764008035352,7.33342212,137.85,137.82,7.91577125]
[1764008035754,7.33342212,137.84,137.82,0.66]
[1764008035975,7.33342212,137.83,137.8,0.66]
[1764008036178,7.33342212,137.83,137.8,7.91689404]
[1764008036355,8.80994492,137.85,137.8,7.91689404]
[1764008036671,7.33342212,137.81,137.78,10.51775031]
[1764008036855,7.33342212,137.79,137.78,7.25775031]
[1764008037268,7.33342212,137.79,137.77,10.51827265]
[1764008037455,7.33342212,137.79,137.77,7.25827265]
[1764008037798,7.33342212,137.79,137.77,0.66]
[1764008038374,7.33342212,137.8,137.77,0.66]
[1764008038578,12.73988249,137.79,137.77,0.66]
[1764008038776,12.73988249,137.78,137.77,0.66]
[1764008039174,25.39581625,137.82,137.77,0.66]
[1764008039175,12.73988249,137.79,137.77,0.66]
[1764008039566,7.95621388,137.82,137.77,0.66]
[1764008039774,16.308864,137.85,137.79,12.73988249]
[1764008040070,12.73988249,137.83,137.79,12.73988249]
[1764008040279,12.73988249,137.81,137.79,0.66]
[1764008040980,12.73988249,137.81,137.77,12.73988249]
[1764008040981,12.73988249,137.8,137.76,3.26]
[1764008041169,8.80994492,137.84,137.77,12.73988249]
[1764008041170,12.76994492,137.84,137.77,12.73988249]
[1764008041366,12.73988249,137.82,137.77,13.39988249]
[1764008041687,12.73988249,137.81,137.78,7.25794745]
[1764008041872,12.73988249,137.81,137.78,7.91794745]
[1764008042180,12.73988249,137.82,137.78,7.91794745]
[1764008042662,12.73988249,137.81,137.78,7.91794745]
[1764008043070,12.73988249,137.81,137.78,26.06281608]
[1764008043588,12.73988249,137.8,137.77,7.2582929]
[1764008043773,12.73988249,137.8,137.77,0.66]
[1764008043975,12.73988249,137.8,137.78,0.66]
[1764008044287,12.73988249,137.81,137.78,0.66]
[1764008045881,12.73988249,137.81,137.78,7.91755639]
[1764008046385,12.73988249,137.81,137.78,7.25755639]
[1764008046586,12.73988249,137.83,137.79,0.66]
[1764008046769,12.73988249,137.83,137.79,3.92]
[1764008047290,12.73988249,137.82,137.8,0.66]
[1764008047891,12.73988249,137.83,137.8,7.91655246]
[1764008048687,12.73988249,137.83,137.8,7.25655246]
[1764008049176,12.73988249,137.83,137.8,7.91655246]
[1764008049789,7.25426187,137.85,137.8,7.25655246]
[1764008050091,12.73988249,137.82,137.8,7.25655246]
[1764008050288,7.25426187,137.85,137.77,3.26]
[1764008050289,12.73988249,137.81,137.77,3.26]
[1764008050590,12.73988249,137.79,137.77,3.26]
[1764008050799,12.73988249,137.8,137.77,3.92]
[1764008050992,3.96,137.83,137.78,0.66]
[1764008051168,12.73988249,137.81,137.78,0.66]
[1764008051994,12.73988249,137.81,137.78,7.91744116]
[1764008052687,12.73988249,137.8,137.78,7.91744116]
[1764008053180,12.73988249,137.8,137.77,10.51824766]
[1764008053378,12.73988249,137.78,137.77,3.26]
[1764008053581,12.73988249,137.78,137.75,7.91916617]
[1764008053875,12.73988249,137.77,137.75,0.66]
[1764008054076,12.73988249,137.78,137.74,25.41019311]
[1764008054280,12.73988249,137.78,137.75,0.66]
[1764008055068,7.95745341,137.79,137.75,0.66]
[1764008055069,12.73988249,137.79,137.75,0.66]
[1764008055401,18.13894855,137.83,137.77,12.73988249]
[1764008055402,12.73988249,137.82,137.77,12.73988249]
[1764008055711,12.73988249,137.82,137.78,0.66]
[1764008055992,12.73988249,137.82,137.79,7.25742071]
[1764008056510,12.73988249,137.82,137.79,7.91742071]
[1764008056675,12.73988249,137.83,137.8,0.66]
[1764008057075,12.73988249,137.82,137.8,0.66]
[1764008057298,12.73988249,137.81,137.78,0.66]
[1764008057599,12.73988249,137.81,137.78,7.91790759]
[1764008058515,12.73988249,137.8,137.78,7.25790759]
[1764008059192,12.73988249,137.81,137.78,7.91790759]
[1764008060104,12.73988249,137.81,137.79,0.66]
[1764008060310,12.73988249,137.82,137.79,0.66]
[1764008060478,12.73988249,137.81,137.79,0.66]
[1764008060883,12.73988249,137.82,137.79,0.66]
[1764008061373,0.7,137.89,137.79,3.92]
[1764008061578,12.73988249,137.88,137.81,50.0]
[1764008061796,12.73988249,137.87,137.83,12.73988249]
[1764008061998,12.73988249,137.87,137.82,16.65988249]
[1764008062208,13.43988249,137.87,137.83,7.91531451]
[1764008062391,12.73988249,137.86,137.82,3.92]
[1764008062706,12.73988249,137.84,137.82,3.26]
[1764008062906,0.69,137.86,137.82,10.51582401]
[1764008063106,12.73988249,137.85,137.82,11.22582401]
[1764008063490,12.73988249,137.85,137.82,10.51582401]
[1764008063978,12.73988249,137.84,137.82,3.26]
[1764008064179,12.73988249,137.84,137.8,3.97]
[1764008064393,12.73988249,137.84,137.81,0.71]
[1764008064584,12.73988249,137.82,137.8,3.26]
[1764008064786,12.73988249,137.81,137.78,0.71]
[1764008065209,16.998864,137.84,137.79,0.71]
[1764008065409,12.73988249,137.82,137.79,0.71]
[1764008065593,16.998864,137.84,137.79,0.71]
[1764008065594,12.73988249,137.83,137.79,0.71]
[1764008065815,12.73988249,137.84,137.79,13.44988249]
[1764008066109,12.73988249,137.83,137.79,0.71]
[1764008066307,16.308864,137.86,137.8,0.71]
[1764008066510,0.69,137.84,137.8,7.25689404]
[1764008066699,12.73988249,137.82,137.79,7.96729498]
[1764008067012,12.73988249,137.81,137.79,7.25729498]
[1764008067805,12.73988249,137.81,137.78,7.25794745]
[1764008068320,12.73988249,137.81,137.78,7.96794745]
[1764008068513,16.06453698,137.85,137.79,13.44988249]
[1764008068822,12.73988249,137.8,137.77,10.51826882]
[1764008069021,8.80994492,137.85,137.78,0.71]
[1764008069314,8.80994492,137.88,137.84,12.73988249]
[1764008069518,12.73988249,137.89,137.83,3.26]
[1764008069726,12.73988249,137.9,137.86,7.25373567]
[1764008070101,12.73988249,137.9,137.86,7.96373567]
[1764008070315,12.73988249,137.9,137.86,0.71]
[1764008070316,19.99178737,137.9,137.86,0.71]
[1764008071117,12.73988249,137.89,137.86,0.71]
[1764008071418,12.73988249,137.87,137.83,23.96498425]
[1764008071928,7.25128984,137.91,137.85,19.99414436]
[1764008072229,12.73988249,137.89,137.86,0.71]
[1764008073222,12.73988249,137.88,137.86,0.71]
[1764008073425,12.73988249,137.87,137.84,7.25473297]
[1764008073808,12.73988249,137.87,137.84,7.96473297]
[1764008074807,12.73988249,137.85,137.81,18.14038057]
[1764008075011,12.73988249,137.83,137.8,10.49689404]
[1764008075224,0.69,137.86,137.8,11.20689404]
[1764008075413,12.73988249,137.85,137.81,0.71]
[1764008075829,12.73988249,137.84,137.81,0.71]
[1764008076528,12.73988249,137.83,137.8,3.24]
[1764008077032,7.25386115,137.86,137.8,11.2065428]
[1764008077033,7.25457871,137.85,137.8,11.2065428]
[1764008077239,12.73988249,137.84,137.8,3.95]
[1764008077434,28.35880892,137.89,137.81,0.71]
[1764008077641,12.73988249,137.84,137.81,0.71]
[1764008078526,12.73988249,137.85,137.81,0.71]
[1764008079117,12.73988249,137.86,137.82,19.99572344]
[1764008079536,12.73988249,137.86,137.83,0.71]
[1764008080343,12.73988249,137.86,137.83,7.96493398]
[1764008080530,12.73988249,137.87,137.83,23.94481647]
[1764008080730,7.25281626,137.88,137.84,0.71]
[1764008080731,12.73988249,137.88,137.84,0.71]
[1764008081041,12.73988249,137.87,137.84,0.71]
[1764008081429,12.73988249,137.88,137.84,0.71]
[1764008082542,12.73988249,137.87,137.84,0.71]
[1764008083323,12.73988249,137.87,137.84,7.96462001]
[1764008083647,12.73988249,137.87,137.84,7.25462001]
[1764008083850,12.73988249,137.87,137.84,7.96462001]
[1764008085143,12.73988249,137.85,137.81,22.09017265]
[1764008085339,12.73988249,137.84,137.81,22.09017265]
[1764008085543,12.73988249,137.84,137.82,7.96554994]
[1764008085849,12.73988249,137.84,137.82,7.25554994]
[1764008086166,13.42988249,137.83,137.76,12.73988249]
[1764008086325,13.42988249,137.83,137.77,3.95]
[1764008086326,12.73988249,137.81,137.77,3.95]
[1764008086755,12.73988249,137.81,137.78,0.71]
[1764008087046,12.73988249,137.82,137.78,13.44988249]
[1764008087247,12.73988249,137.82,137.79,0.71]
[1764008087819,3.24,137.84,137.79,7.96719484]
[1764008087820,12.73988249,137.81,137.79,7.96719484]
[1764008088519,12.73988249,137.81,137.79,0.71]
[1764008088723,12.73988249,137.8,137.77,11.21844853]
[1764008088949,0.68,137.82,137.77,10.49815964]
[1764008089146,12.73988249,137.79,137.77,10.49815964]
[1764008089753,12.73988249,137.79,137.77,3.24]
[1764008090258,12.73988249,137.79,137.77,11.21831027]
[1764008090430,12.73988249,137.8,137.77,11.21831027]
[1764008091052,12.73988249,137.8,137.74,66.308864]
[1764008091053,61.67930644,137.81,137.74,65.608864]
[1764008091230,1.99999999,137.79,137.65,3.24]
[1764008091532,21.54982741,137.71,137.7,0.72]
[1764008091727,8.80994492,137.74,137.7,0.72]
[1764008091932,12.73988249,137.73,137.7,0.72]
[1764008092167,8.80994492,137.74,137.7,0.72]
[1764008092370,12.73988249,137.71,137.68,3.24]
[1764008092654,12.73988249,137.69,137.65,0.68]
[1764008092840,12.73988249,137.67,137.65,0.68]
[1764008093044,12.73988249,137.66,137.65,0.68]
[1764008094148,12.73988249,137.66,137.63,7.26585773]
[1764008094338,12.73988249,137.67,137.63,11.18585773]
[1764008094654,12.73988249,137.67,137.64,0.68]
[1764008094858,8.80994492,137.69,137.64,0.68]
[1764008095047,12.73988249,137.67,137.64,0.68]
[1764008095356,16.97908036,137.73,137.64,0.68]
[1764008095656,12.73988249,137.71,137.67,12.73988249]
[1764008095869,21.54982741,137.72,137.68,7.26321905]
[1764008096061,21.54982741,137.72,137.68,7.94321905]
[1764008096232,12.73988249,137.71,137.68,0.68]
[1764008096740,12.73988249,137.71,137.69,0.68]
[1764008096938,12.73988249,137.73,137.69,13.41988249]
[1764008097142,16.308864,137.74,137.69,13.41988249]
[1764008097143,12.73988249,137.74,137.7,12.73988249]
[1764008097351,36.28183731,137.81,137.7,50.68]
[1764008097352,12.73988249,137.8,137.7,50.68]
[1764008097531,12.73988249,137.75,137.71,13.41988249]
[1764008097745,12.73988249,137.75,137.71,7.94128633]
[1764008097952,12.73988249,137.74,137.72,0.68]
[1764008098954,12.73988249,137.73,137.7,0.68]
[1764008099851,16.06841918,137.77,137.7,0.68]
[1764008100066,12.73988249,137.73,137.7,7.94185034]
[1764008100464,12.73988249,137.73,137.71,0.68]
[1764008100774,7.323657,137.73,137.7,7.94185034]
[1764008100963,7.323657,137.72,137.7,7.26185034]
[1764008101148,7.323657,137.72,137.7,7.94185034]
[1764008101466,8.80994492,137.77,137.71,8.003657]
[1764008101674,11.71838578,137.83,137.71,8.003657]
[1764008101675,7.323657,137.74,137.71,0.68]
[1764008101880,7.323657,137.73,137.71,0.68]
[1764008102576,7.323657,137.75,137.71,0.68]
[1764008102946,7.323657,137.75,137.72,7.26110949]
[1764008103373,7.323657,137.75,137.73,0.68]
[1764008103677,10.49859331,137.77,137.73,0.68]
[1764008103678,7.323657,137.76,137.73,0.68]
[1764008103873,7.323657,137.76,137.69,3.24]
[1764008103874,7.323657,137.75,137.7,7.323657]
[1764008104050,7.323657,137.75,137.7,8.003657]
[1764008104371,7.323657,137.73,137.7,7.94216412]
[1764008104872,7.323657,137.72,137.69,10.50253268]
[1764008105258,7.323657,137.71,137.68,7.26302077]
[1764008105464,3.24,137.74,137.68,7.26302077]
[1764008105465,7.323657,137.7,137.68,7.94302077]
[1764008105869,7.323657,137.69,137.68,0.68]
[1764008106082,7.323657,137.69,137.66,7.94411781]
[1764008106396,7.323657,137.68,137.66,0.68]
[1764008106585,7.323657,137.67,137.64,0.68]
[1764008106748,7.323657,137.66,137.65,0.68]
[1764008107073,7.323657,137.66,137.64,7.26530275]
[1764008107278,7.323657,137.66,137.64,7.94530275]
[1764008107595,7.323657,137.65,137.61,0.68]
[1764008107784,8.80994492,137.67,137.61,0.68]
[1764008107955,7.323657,137.65,137.62,0.68]
[1764008109184,7.26405206,137.67,137.62,7.94603361]
[1764008109383,7.323657,137.65,137.62,7.94603361]
[1764008109560,7.323657,137.65,137.63,0.68]
[1764008110093,7.323657,137.64,137.63,0.68]
[1764008110293,7.323657,137.64,137.61,0.68]
[1764008111087,7.323657,137.63,137.6,3.44]
[1764008111292,7.323657,137.61,137.6,0.2]
[1764008112482,26.71725892,137.61,137.6,0.2]
[1764008113201,12.06994492,137.61,137.6,0.2]
[1764008113384,16.13360192,137.61,137.6,0.2]
[1764008113888,23.40051566,137.61,137.6,0.2]
[1764008114783,16.13360192,137.61,137.6,0.2]
[1764008115099,7.323657,137.61,137.6,0.2]
[1764008115788,16.13360192,137.61,137.6,0.2]
[1764008116179,19.568864,137.62,137.6,0.88]
[1764008116404,7.323657,137.61,137.6,0.2]
[1764008117988,14.59057074,137.61,137.6,0.2]
[1764008118604,23.40051566,137.61,137.6,0.2]
[1764008118809,30.72417266,137.61,137.6,0.2]
[1764008118986,32.44246592,137.58,137.57,0.2]
[1764008119307,42.97096424,137.58,137.57,0.2]
[1764008120191,35.70246592,137.58,137.57,0.2]
[1764008120779,42.97096424,137.58,137.57,0.2]
[1764008121079,7.323657,137.58,137.57,0.2]
[1764008121303,39.71096424,137.58,137.57,0.2]
[1764008123293,8.80994492,137.54,137.5,0.2]
[1764008123487,7.323657,137.52,137.5,0.2]
[1764008123689,7.323657,137.52,137.51,0.7]
[1764008123910,7.323657,137.53,137.51,0.7]
[1764008124931,7.323657,137.53,137.51,7.97210775]
[1764008125128,7.323657,137.54,137.51,7.97210775]
[1764008125333,3.26,137.56,137.52,0.7]